bitfinex/quotes_ETHUSD_20241024
["timestamp","ask_amount","ask_price","bid_price","bid_amount"]
[1729758668004,5.21994965,2545.1,2544.5,9.80640106]
[1729758668313,3.92918,2545.1,2544.5,4.50700997]
[1729758668515,7.85838,2545.1,2544.5,4.50700997]
[1729758668739,3.92883,2545.3,2544.6,0.55]
[1729758668962,3.92883,2545.3,2544.7,0.0785865]
[1729758669241,3.92883,2545.3,2544.7,4.0082865]
[1729758669459,3.92883,2545.3,2544.8,0.55]
[1729758669605,3.92883,2545.3,2544.8,4.47949]
[1729758669808,3.92883,2545.3,2544.8,4.55807271]
[1729758670004,7.85774,2545.3,2544.8,0.62858271]
[1729758670205,3.92883,2545.3,2544.8,0.55]
[1729758670619,3.9286,2545.5,2545.0,4.47918]
[1729758670937,3.92866,2545.4,2545.0,0.55]
[1729758671144,3.9286,2545.5,2545.0,0.55]
[1729758671329,3.92866,2545.4,2545.0,0.55]
[1729758671948,3.9286,2545.5,2545.0,4.47922]
[1729758672109,3.9286,2545.5,2545.1,0.840852]
[1729758672723,3.92829,2545.7,2545.2,0.55]
[1729758673014,3.92829,2545.7,2545.2,0.62857533]
[1729758674050,3.92839,2545.6,2545.2,0.55]
[1729758674254,3.92851,2545.5,2545.2,0.55]
[1729758677051,3.92828,2545.7,2545.2,0.55]
[1729758677207,3.92795,2545.9,2545.2,5.08945464]
[1729758677545,3.92764,2546.1,2545.6,3.92831]
[1729758677742,3.92737,2546.3,2545.7,0.62856036]
[1729758678046,3.92735,2546.3,2545.7,5.0124314]
[1729758678246,3.92735,2546.3,2545.8,3.92801]
[1729758678746,3.92735,2546.3,2545.9,0.13303845]
[1729758679060,2.89306601,2547.1,2546.0,0.62855048]
[1729758679211,3.92683,2546.6,2546.2,0.55]
[1729758679547,3.92708,2546.5,2546.3,0.13278807]
[1729758680057,3.92695,2546.5,2546.3,0.13278807]
[1729758680347,3.92711,2546.4,2546.3,0.13278807]
[1729758680705,3.92711,2546.4,2545.9,0.55]
[1729758681149,3.92711,2546.4,2546.0,0.13242235]
[1729758682012,3.92738,2546.3,2546.0,0.13242235]
[1729758682464,7.85477,2546.3,2546.0,0.13242235]
[1729758682762,3.92738,2546.3,2546.0,0.13242235]
[1729758683329,3.9275,2546.2,2546.0,0.13242235]
[1729758683530,3.92738,2546.3,2546.0,0.13242235]
[1729758683729,7.85476,2546.3,2545.8,3.92802]
[1729758684072,7.85475,2546.3,2545.9,0.13248495]
[1729758684426,7.85472,2546.3,2545.9,0.13248495]
[1729758685273,8.640192,2546.3,2545.9,0.13248495]
[1729758685845,3.92743,2546.2,2545.9,0.13248495]
[1729758686279,3.92743,2546.2,2545.8,0.55]
[1729758686430,3.92743,2546.2,2546.0,0.1314789]
[1729758686630,3.92743,2546.2,2545.8,0.55]
[1729758686944,3.92743,2546.2,2545.9,0.1315415]
[1729758688390,3.92758,2546.1,2545.9,0.1315415]
[1729758688666,3.92758,2546.1,2545.7,0.55]
[1729758688866,3.92758,2546.1,2546.0,0.1314789]
[1729758689036,8.640734,2546.1,2545.8,0.19]
[1729758689243,4.713074,2546.1,2546.0,0.1314789]
[1729758689447,4.713074,2546.1,2545.9,0.1315415]
[1729758689771,3.92758,2546.1,2546.0,0.1314789]
[1729758689944,3.92758,2546.1,2545.8,0.19]
[1729758690272,3.92758,2546.1,2545.9,0.1315415]
[1729758690471,3.92772,2546.0,2545.9,0.1315415]
[1729758690626,3.92791,2545.9,2545.5,0.55]
[1729758690831,7.85592,2545.9,2545.6,0.13175448]
[1729758691333,3.92791,2545.9,2545.6,0.13175448]
[1729758692741,4.320701,2545.9,2545.6,0.13175448]
[1729758692951,3.92816,2545.8,2545.6,0.13175448]
[1729758693253,3.92816,2545.8,2545.3,0.55]
[1729758693575,3.92816,2545.8,2545.3,4.4788]
[1729758693746,3.92816,2545.8,2545.4,0.13192372]
[1729758694144,4.320691,2545.9,2545.4,0.13192372]
[1729758694145,4.320691,2545.9,2545.4,0.21048891]
[1729758694346,4.320691,2545.9,2545.4,0.13192372]
[1729758694646,8.248681,2545.9,2545.4,0.13192372]
[1729758694849,3.92811,2545.8,2545.4,0.13192372]
[1729758696937,3.92823,2545.7,2545.4,0.13192372]
[1729758697776,3.92811,2545.8,2545.4,0.13192372]
[1729758697974,7.85626,2545.8,2545.4,0.13192372]
[1729758698183,3.92811,2545.8,2545.4,0.13192372]
[1729758698546,7.85626,2545.8,2545.4,0.13192372]
[1729758698784,3.92811,2545.8,2545.4,0.13192372]
[1729758699447,7.85623,2545.8,2545.4,0.13192372]
[1729758699772,3.92811,2545.8,2545.4,0.13192372]
[1729758703848,3.9282,2545.7,2545.4,0.13192372]
[1729758704486,3.92811,2545.8,2545.4,0.13192372]
[1729758704782,3.92811,2545.8,2545.4,1.42590749]
[1729758706999,3.92811,2545.8,2545.5,1.29398377]
[1729758707176,3.92811,2545.8,2545.6,0.13179847]
[1729758708001,3.92811,2545.8,2545.4,5.30118904]
[1729758708206,3.92811,2545.8,2545.5,1.42584487]
[1729758708846,3.92811,2545.8,2545.5,0.1318611]
[1729758709106,3.92753,2546.2,2545.7,5.22216377]
[1729758709312,3.9272,2546.4,2545.7,5.22216377]
[1729758709313,3.9272,2546.4,2545.9,1.29398377]
[1729758709468,7.8544,2546.4,2545.9,1.29398377]
[1729758709682,7.8544,2546.4,2546.0,0.13151032]
[1729758710101,3.9272,2546.4,2546.0,0.13151032]
[1729758710305,3.92726,2546.3,2546.0,0.13151032]
[1729758710606,3.92726,2546.3,2545.8,1.37253434]
[1729758710907,0.01,2546.9,2546.2,1.29398377]
[1729758710908,3.9269,2546.6,2546.2,1.29398377]
[1729758711113,3.92665,2546.7,2546.2,5.29993444]
[1729758711311,3.92665,2546.7,2546.3,1.42522459]
[1729758711514,3.92665,2546.7,2546.3,0.13124082]
[1729758711699,3.92665,2546.7,2546.3,1.42522459]
[1729758712010,3.92665,2546.7,2546.3,0.13124082]
[1729758712389,3.92665,2546.7,2546.3,1.42522459]
[1729758712576,3.92665,2546.7,2546.3,1.46522459]
[1729758712909,3.92682,2546.6,2546.3,0.17124082]
[1729758713688,3.92682,2546.6,2546.3,0.13124082]
[1729758715322,7.85373,2546.6,2546.3,0.13124082]
[1729758715522,3.92682,2546.6,2546.3,0.13124082]
[1729758715727,3.92682,2546.6,2546.1,0.55]
[1729758715890,3.92682,2546.6,2546.4,0.12620107]
[1729758716234,3.92682,2546.6,2546.5,0.12613849]
[1729758716426,3.92682,2546.6,2546.2,0.04]
[1729758716584,3.92682,2546.6,2546.5,0.12613849]
[1729758716784,3.92682,2546.6,2546.2,0.04]
[1729758716980,3.92682,2546.6,2546.5,0.12613849]
[1729758717184,3.92682,2546.6,2546.2,0.04]
[1729758717419,3.92682,2546.6,2546.5,0.12613849]
[1729758717610,3.92682,2546.6,2546.2,0.04]
[1729758717809,3.92682,2546.6,2546.3,0.12626365]
[1729758720320,7.8525136,2546.6,2546.3,0.12626365]
[1729758720838,3.9256236,2546.6,2546.3,0.12626365]
[1729758722531,3.92674,2546.7,2546.3,0.12626365]
[1729758722870,3.92684,2546.6,2546.3,0.12626365]
[1729758723027,3.92674,2546.7,2546.3,0.12626365]
[1729758723363,3.9262,2547.0,2546.4,0.55]
[1729758723662,3.92604,2547.1,2546.6,4.47679]
[1729758723957,3.92619,2547.0,2546.6,4.55532541]
[1729758724262,3.92619,2547.0,2546.7,0.12592562]
[1729758724859,0.61452724,2547.6,2546.8,3.92641]
[1729758724860,3.92564,2547.4,2546.8,3.92641]
[1729758725059,0.61452724,2547.6,2546.9,4.6021305]
[1729758725060,3.92541,2547.5,2546.9,4.6021305]
[1729758725263,3.92541,2547.5,2547.0,0.07851458]
[1729758725463,3.92541,2547.5,2547.1,0.12529318]
[1729758727168,7.85093,2547.5,2547.1,0.12529318]
[1729758727464,3.92569,2547.4,2547.1,0.12529318]
[1729758727680,3.92569,2547.4,2546.9,0.55]
[1729758727823,3.92569,2547.4,2547.2,0.12523064]
[1729758728026,3.92569,2547.4,2546.9,1.47638221]
[1729758728368,3.92569,2547.4,2547.0,0.12535573]
[1729758728857,3.92541,2547.5,2547.0,0.12535573]
[1729758729022,3.92572,2547.3,2547.0,0.12535573]
[1729758729867,3.92603,2547.1,2547.0,0.12535573]
[1729758730069,3.92619,2547.0,2546.5,3.92686]
[1729758730232,3.92619,2547.0,2546.6,0.392686]
[1729758730829,7.85246,2547.0,2546.6,0.392686]
[1729758731025,3.92636,2546.9,2546.6,0.392686]
[1729758731528,3.92619,2547.0,2546.6,0.392686]
[1729758732771,7.85199,2547.2,2546.6,4.39800216]
[1729758732972,3.92597,2547.2,2546.7,1.46102063]
[1729758733176,3.92597,2547.2,2546.7,5.30912522]
[1729758733605,3.92576,2547.3,2546.9,0.55]
[1729758734997,3.92568,2547.4,2546.8,0.55]
[1729758735165,2.89920228,2547.8,2546.8,0.55]
[1729758735367,3.92606,2547.1,2546.8,0.55]
[1729758736302,3.92597,2547.2,2546.8,0.55]
[1729758738808,3.92597,2547.2,2546.9,0.12504865]
[1729758739001,3.92606,2547.1,2546.9,0.12504865]
[1729758739368,3.92583,2547.3,2546.9,0.12504865]
[1729758739566,3.92589,2547.2,2546.9,0.12504865]
[1729758741488,3.92583,2547.3,2546.9,0.66846604]
[1729758741680,3.92583,2547.3,2547.0,0.55]
[1729758741912,3.92583,2547.3,2547.0,0.6749861]
[1729758743003,7.85106,2547.5,2547.0,1.96726891]
[1729758743321,3.92522,2547.7,2547.4,0.55]
[1729758743484,3.925,2547.8,2547.4,2.49759228]
[1729758743681,3.925,2547.8,2547.5,0.12025678]
[1729758744525,3.9249,2547.9,2547.5,0.12025678]
[1729758744888,3.92503,2547.8,2547.5,0.12025678]
[1729758745903,3.9249,2547.9,2547.6,0.55]
[1729758746294,3.9249,2547.9,2547.7,0.12000681]
[1729758746690,3.9249,2547.9,2547.7,0.07700681]
[1729758746995,3.9249,2547.9,2547.7,0.11851096]
[1729758747498,3.92469,2548.0,2547.7,0.11851096]
[1729758752129,3.9248,2547.9,2547.7,0.11851096]
[1729758753732,3.92495,2547.8,2547.7,0.11851096]
[1729758753933,3.92495,2547.8,2547.7,0.66851096]
[1729758761204,4.709925,2547.8,2547.7,0.11851096]
[1729758761544,3.92566,2547.4,2546.7,3.92651]
[1729758761710,3.92589,2547.2,2546.9,0.05]
[1729758762631,3.92568,2547.4,2546.9,0.05]
[1729758762936,3.92572,2547.3,2546.9,0.05]
[1729758763502,3.92572,2547.3,2547.0,0.55]
[1729758764113,3.92572,2547.3,2546.9,0.55]
[1729758765334,7.85152,2547.3,2546.9,0.55]
[1729758765514,3.92572,2547.3,2546.9,0.55]
[1729758765939,3.92572,2547.3,2547.0,0.55]
[1729758766305,5.2178637,2547.5,2547.0,0.55]
[1729758766646,5.2178637,2547.5,2546.8,0.55]
[1729758766647,3.9258,2547.3,2546.8,0.55]
[1729758766819,3.9258,2547.3,2546.8,1.8423537]
[1729758767138,3.9258,2547.3,2546.8,4.47649]
[1729758767329,3.9258,2547.3,2546.8,5.7688437]
[1729758767852,3.9258,2547.3,2546.8,4.47649]
[1729758768007,5.2180537,2547.4,2546.9,3.92633]
[1729758768205,10.11027371,2547.4,2547.0,0.55]
[1729758768405,3.92573,2547.3,2547.0,0.55]
[1729758768644,5.2182237,2547.3,2547.1,0.11871132]
[1729758768840,3.92587,2547.3,2547.1,0.11871132]
[1729758769040,3.92587,2547.3,2546.8,0.55]
[1729758769041,3.92587,2547.3,2546.8,4.47648]
[1729758769244,4.89222001,2547.4,2546.8,1.8423537]
[1729758769402,3.9257,2547.4,2547.0,0.55]
[1729758769734,3.9257,2547.4,2547.1,0.11878627]
[1729758772642,5.2180037,2547.4,2547.1,0.11878627]
[1729758774421,5.2180837,2547.3,2547.1,0.11878627]
[1729758774624,3.92573,2547.3,2547.1,0.11878627]
[1729758774820,5.2180037,2547.4,2547.1,0.11878627]
[1729758775025,6.18451871,2547.4,2547.1,0.11878627]
[1729758775454,3.92575,2547.3,2547.1,0.11878627]
[1729758775757,6.18451871,2547.4,2547.1,0.11878627]
[1729758776657,10.11017871,2547.4,2547.1,0.11878627]
[1729758777319,6.18451871,2547.4,2547.1,0.11878627]
[1729758777521,3.92575,2547.3,2547.1,0.11878627]
[1729758777864,6.18451871,2547.4,2547.1,0.11878627]
[1729758778039,10.11019871,2547.4,2547.1,0.11878627]
[1729758778539,6.18451871,2547.4,2547.1,0.11878627]
[1729758778736,10.11016871,2547.4,2547.1,0.11878627]
[1729758779049,6.18451871,2547.4,2547.1,0.11878627]
[1729758779932,3.92587,2547.2,2547.1,0.11878627]
[1729758780338,3.92587,2547.2,2546.7,3.92654]
[1729758780339,3.92587,2547.2,2546.8,0.55]
[1729758780547,3.92587,2547.2,2547.1,0.11885497]
[1729758780851,3.92587,2547.2,2547.1,0.11892368]
[1729758781158,3.92587,2547.2,2546.8,0.55]
[1729758781356,3.92587,2547.2,2547.1,0.11892992]
[1729758781536,3.92587,2547.2,2546.8,0.55]
[1729758781728,3.92587,2547.2,2547.1,0.11892992]
[1729758781930,3.92587,2547.2,2546.8,0.55]
[1729758782269,3.92587,2547.2,2546.8,1.8423537]
[1729758782560,3.92587,2547.2,2546.9,0.11905503]
[1729758785740,3.92603,2547.1,2546.9,0.11905503]
[1729758786335,3.92587,2547.2,2546.9,0.11905503]
[1729758787347,5.2180737,2547.3,2546.9,0.11905503]
[1729758787554,3.92572,2547.3,2546.9,0.11905503]
[1729758790080,3.0,2547.9,2546.9,0.11905503]
[1729758790081,3.92542,2547.5,2547.0,4.55462177]
[1729758790249,5.2177737,2547.5,2547.1,0.11902986]
[1729758791569,3.92579,2547.3,2547.1,0.11902986]
[1729758791927,5.2181437,2547.3,2546.9,0.55]
[1729758792172,5.2181437,2547.3,2547.2,0.11896732]
[1729758792335,5.2181437,2547.3,2546.9,0.55]
[1729758792536,3.92579,2547.3,2547.2,0.11896732]
[1729758792761,3.92579,2547.3,2546.9,0.55]
[1729758792936,3.92579,2547.3,2547.2,0.11895483]
[1729758793138,3.92579,2547.3,2546.9,0.55]
[1729758793649,3.92579,2547.3,2547.0,0.11907992]
[1729758794867,3.92587,2547.2,2547.0,0.11907992]
[1729758797460,5.2182237,2547.2,2547.0,0.11907992]
[1729758797639,0.52182237,2547.1,2546.4,1.2923537]
[1729758797839,3.92612,2547.1,2546.7,0.55]
[1729758798039,3.92612,2547.1,2546.8,0.11920505]
[1729758799072,3.92624,2547.0,2546.8,0.11920505]
[1729758802494,3.92612,2547.1,2546.8,0.11920505]
[1729758802978,7.85229,2547.1,2546.8,0.11920505]
[1729758803146,3.92629,2547.0,2546.8,0.11920505]
[1729758806242,5.2184737,2547.1,2546.8,0.11920505]
[1729758806476,0.36785273,2547.0,2546.8,0.11920505]
[1729758806658,9.1445937,2547.1,2546.8,0.11920505]
[1729758806873,0.36784993,2547.0,2546.8,0.11920505]
[1729758807049,5.2184737,2547.1,2546.8,0.11920505]
[1729758807252,0.36784977,2547.0,2546.8,0.11920505]
[1729758807466,5.2184637,2547.1,2546.8,0.11920505]
[1729758807668,0.36798962,2547.0,2546.8,0.11920505]
[1729758807906,3.9262,2547.0,2546.8,0.11920505]
[1729758809499,5.2184637,2547.1,2546.8,0.11920505]
[1729758809703,0.36797924,2547.0,2546.8,0.11920505]
[1729758809916,3.92622,2547.0,2546.8,0.11920505]
[1729758810269,5.2184637,2547.1,2546.8,0.11920505]
[1729758810481,0.36797302,2547.0,2546.8,0.11920505]
[1729758810805,5.2184637,2547.1,2546.8,0.11920505]
[1729758811008,0.36799276,2547.0,2546.8,0.11920505]
[1729758811304,0.61445387,2547.7,2546.9,1.8423537]
[1729758811511,0.95664348,2547.6,2547.3,1.8423537]
[1729758811678,0.3679398,2547.5,2547.4,0.66899842]
[1729758812006,0.3679398,2547.5,2547.4,0.11899842]
[1729758812308,0.3679398,2547.5,2547.1,0.55]
[1729758812510,5.2176137,2547.6,2547.4,0.11899842]
[1729758812684,0.36785305,2547.5,2547.1,4.47602]
[1729758812872,1.2923537,2547.6,2547.5,0.11893589]
[1729758813065,1.66021058,2547.6,2547.1,8.40195]
[1729758813265,9.1426637,2547.7,2547.1,8.40195]
[1729758813465,0.36779349,2547.6,2547.3,0.55]
[1729758813681,5.2174637,2547.7,2547.3,0.55]
[1729758813880,0.36779237,2547.6,2547.4,0.11899842]
[1729758814109,5.2174637,2547.7,2547.4,0.11899842]
[1729758814313,0.36779226,2547.6,2547.4,0.11899842]
[1729758814514,5.2174637,2547.7,2547.4,0.11899842]
[1729758814675,0.36773923,2547.6,2547.4,0.11899842]
[1729758814874,5.2174637,2547.7,2547.4,0.11899842]
[1729758815076,0.36773933,2547.6,2547.4,0.11899842]
[1729758815384,5.2174637,2547.7,2547.4,0.11899842]
[1729758815587,0.36769648,2547.6,2547.4,0.11899842]
[1729758815813,5.2174637,2547.7,2547.4,0.11899842]
[1729758816118,0.36769716,2547.6,2547.4,0.11899842]
[1729758816410,5.2174637,2547.7,2547.4,0.11899842]
[1729758816617,0.36764794,2547.6,2547.4,0.11899842]
[1729758816770,5.2174637,2547.7,2547.4,0.11899842]
[1729758816973,0.36764791,2547.6,2547.4,0.11899842]
[1729758817213,5.2174637,2547.7,2547.4,0.11899842]
[1729758819179,1.2923537,2547.6,2547.4,0.11899842]
[1729758820011,5.2176337,2547.6,2547.4,0.11899842]
[1729758822313,5.2174637,2547.7,2547.4,0.11899842]
[1729758822535,9.1426737,2547.7,2547.4,0.11899842]
[1729758822735,5.2174637,2547.7,2547.4,0.11899842]
[1729758822919,5.2176137,2547.6,2547.4,0.11899842]
[1729758823937,5.2174637,2547.7,2547.4,0.11899842]
[1729758825008,9.1426837,2547.7,2547.4,0.11899842]
[1729758825332,5.2174637,2547.7,2547.4,0.11899842]
[1729758826450,9.1426437,2547.7,2547.4,0.11899842]
[1729758826638,5.2174637,2547.7,2547.4,0.11899842]
[1729758827514,9.1426837,2547.7,2547.4,0.11899842]
[1729758829046,1.2923537,2547.6,2547.4,0.11899842]
[1729758829211,5.2177637,2547.5,2547.4,0.11899842]
[1729758831124,1.2923537,2547.5,2547.4,0.11899842]
[1729758831357,1.2923537,2547.6,2547.4,0.11899842]
[1729758831655,5.2177237,2547.6,2547.4,0.11899842]
[1729758831952,1.2923537,2547.5,2547.4,0.11899842]
[1729758833355,5.2177637,2547.5,2547.4,0.11899842]
[1729758835257,6.13205107,2547.5,2547.4,0.11899842]
[1729758835563,6.49951424,2547.5,2546.9,3.92631]
[1729758835728,1.2923537,2547.3,2546.9,3.92631]
[1729758836059,1.2923537,2547.3,2547.0,0.11891127]
[1729758836355,5.2183837,2547.1,2547.0,0.11891127]
[1729758836520,1.2923537,2547.1,2546.7,3.92651]
[1729758836828,5.2182337,2547.2,2546.8,0.11908635]
[1729758838670,3.92588,2547.2,2546.8,0.11908635]
[1729758838868,5.2182337,2547.2,2546.8,0.11908635]
[1729758839544,5.2185037,2547.1,2546.8,0.11908635]
[1729758839858,5.2185037,2547.1,2546.6,0.55]
[1729758840072,5.2185037,2547.1,2546.9,0.11921119]
[1729758840358,5.2184937,2547.1,2547.0,0.11914864]
[1729758840547,5.2184937,2547.1,2546.6,4.47669]
[1729758840742,5.2184937,2547.1,2546.8,0.55]
[1729758840954,3.92619,2547.0,2546.9,0.11921119]
[1729758841132,5.2185437,2547.0,2546.9,0.11921119]
[1729758841465,5.2184937,2547.1,2546.6,3.92676]
[1729758841619,5.2184937,2547.1,2546.9,0.11921119]
[1729758841825,5.2184937,2547.1,2546.7,0.55]
[1729758842024,5.2184937,2547.1,2547.0,0.11914864]
[1729758842364,3.92623,2547.0,2546.6,0.55]
[1729758843537,3.92623,2547.0,2546.7,0.11933631]
[1729758844478,1.2923537,2546.8,2546.7,0.11933631]
[1729758844764,5.2188437,2546.8,2546.7,0.11933631]
[1729758845001,3.92692,2546.6,2546.0,3.92758]
[1729758845146,3.92692,2546.6,2545.8,3.92793]
[1729758845147,1.2923537,2546.3,2545.8,3.92792]
[1729758845346,5.2196137,2546.3,2545.8,3.92792]
[1729758845582,1.2923537,2546.3,2545.6,5.2206237]
[1729758845767,1.2923537,2546.1,2545.7,3.92819]
[1729758846282,1.2923537,2546.1,2545.6,7.85653]
[1729758846583,3.92744,2546.2,2545.5,3.92845]
[1729758846584,1.2923537,2545.9,2545.5,3.92845]
[1729758846751,1.2923537,2546.0,2545.6,3.92833]
[1729758846952,1.2923537,2546.1,2545.6,3.92825]
[1729758847980,1.2923537,2546.0,2545.6,3.92825]
[1729758848187,5.2201637,2546.0,2545.5,0.55]
[1729758848489,1.2923537,2545.9,2545.5,0.52209037]
[1729758848780,5.2203937,2545.8,2545.2,3.92886]
[1729758849089,1.2923537,2545.5,2544.9,1.2923537]
[1729758849399,1.2923537,2545.3,2545.0,3.92923]
[1729758849695,1.2923537,2545.2,2545.0,0.78587]
[1729758849850,1.2923537,2545.3,2545.0,0.78587]
[1729758850052,1.2923537,2545.3,2544.8,3.92947]
[1729758850253,5.2211637,2545.3,2544.8,3.92947]
[1729758850467,3.92881,2545.3,2544.8,5.2218237]
[1729758850759,5.2211637,2545.3,2544.8,7.85895]
[1729758851264,5.2211637,2545.3,2544.8,3.92947]
[1729758851465,1.2923537,2545.1,2544.8,3.92947]
[1729758851673,1.2923537,2545.2,2544.9,0.55]
[1729758852558,5.2211637,2545.3,2544.9,0.55]
[1729758852964,1.2923537,2545.2,2544.9,0.55]
[1729758853170,5.2214037,2545.2,2544.7,0.55]
[1729758853957,5.2211637,2545.3,2544.7,6.74224607]
[1729758854273,3.92828,2545.7,2545.2,1.2923537]
[1729758854274,3.92829,2545.7,2545.2,1.2923537]
[1729758854594,1.2923537,2545.7,2545.3,4.4787]
[1729758855097,3.92804,2545.8,2545.3,4.4787]
[1729758855301,1.2923537,2545.7,2545.3,4.4787]
[1729758855505,1.2923537,2545.7,2545.3,5.319473]
[1729758856005,9.1483137,2545.9,2545.3,6.6118267]
[1729758856248,1.2923537,2545.8,2545.3,5.319473]
[1729758856554,1.2923537,2545.8,2545.3,9.248193]
[1729758856762,1.2923537,2545.8,2545.4,1.06191156]
[1729758857086,5.2204137,2545.8,2545.4,1.06191156]
[1729758857287,1.2923537,2545.8,2545.4,1.06191156]
[1729758858473,5.2203137,2545.9,2545.4,1.06191156]
[1729758858801,7.85533,2546.1,2545.5,0.12180635]
[1729758859003,7.85533,2546.1,2545.5,6.11656572]
[1729758859004,5.2200137,2546.1,2545.5,6.11656572]
[1729758859294,5.2200137,2546.1,2545.6,0.55]
[1729758859697,5.2200137,2546.1,2545.7,0.12168111]
[1729758859873,9.1476937,2546.1,2545.7,0.12168111]
[1729758860585,1.2923537,2546.0,2545.7,0.12168111]
[1729758860797,5.2200137,2546.1,2545.7,0.12168111]
[1729758861202,1.2923537,2546.1,2545.8,0.55]
[1729758861406,1.2923537,2546.1,2545.9,0.12168096]
[1729758861603,5.2199437,2546.1,2545.9,0.12168096]
[1729758861802,1.2923537,2546.0,2545.9,0.12168096]
[1729758864878,5.2200737,2546.0,2545.9,0.12168096]
[1729758865084,6.13484007,2546.0,2545.9,0.12168096]
[1729758865264,3.92798,2545.9,2545.4,0.55]
[1729758865471,5.2203337,2545.9,2545.4,0.55]
[1729758865690,3.92805,2545.8,2545.4,0.55]
[1729758866417,5.2204037,2545.8,2545.4,0.55]
[1729758866767,5.2208337,2545.6,2545.2,0.55]
[1729758867266,5.2209537,2545.5,2544.9,5.2216737]
[1729758867793,5.2209537,2545.5,2544.9,3.92932]
[1729758868301,5.2210937,2545.4,2545.0,0.55]
[1729758868498,5.2211737,2545.3,2544.7,9.1516237]
[1729758868705,5.2213637,2545.2,2544.7,3.92962]
[1729758868868,5.2211737,2545.3,2544.7,5.2219737]
[1729758869198,3.92882,2545.3,2544.8,5.2218537]
[1729758869402,3.92882,2545.3,2544.8,6.13700107]
[1729758869607,3.92882,2545.3,2544.8,4.84464737]
[1729758869765,5.2211737,2545.3,2544.8,4.84464737]
[1729758869961,5.2211737,2545.3,2544.9,0.55]
[1729758870211,5.2211737,2545.3,2544.8,0.55]
[1729758870395,1.2923537,2545.2,2544.8,0.55]
[1729758870701,5.2214637,2545.2,2544.7,0.55]
[1729758870875,3.92914,2545.1,2544.7,0.55]
[1729758871074,9.1501137,2545.3,2544.7,4.47972]
[1729758871347,3.92897,2545.2,2544.7,6.74227307]
[1729758871471,5.2213237,2545.2,2544.7,5.44991937]
[1729758871668,3.92897,2545.2,2544.7,5.44991937]
[1729758871883,5.2213237,2545.2,2544.7,5.44991937]
[1729758872107,5.2213237,2545.2,2544.7,4.47972]
[1729758872809,3.92973,2544.7,2544.0,3.93071]
[1729758872994,1.2923537,2544.6,2544.0,5.2230637]
[1729758873170,5.2222537,2544.6,2544.1,0.52230637]
[1729758873363,3.9299,2544.6,2544.1,0.52230637]
[1729758873569,3.9299,2544.6,2544.2,0.12306494]
[1729758874095,5.2222537,2544.6,2544.2,0.12306494]
[1729758874302,3.93035,2544.3,2544.2,0.12306494]
[1729758874473,5.2227037,2544.3,2544.2,0.12306494]
[1729758874670,5.2227037,2544.3,2543.7,1.2923537]
[1729758874901,5.2227037,2544.3,2544.2,0.12334649]
[1729758874902,3.93035,2544.3,2544.2,0.12334649]
[1729758875109,3.93035,2544.3,2543.8,1.2923537]
[1729758875316,3.93035,2544.3,2544.2,0.12334649]
[1729758875522,3.93067,2544.1,2543.3,3.9318]
[1729758875727,1.2923537,2544.0,2543.4,1.2923537]
[1729758875987,5.2231737,2544.0,2543.4,1.81476907]
[1729758876184,5.2231737,2544.0,2543.4,5.74649907]
[1729758876417,5.2231737,2544.0,2543.4,4.45414537]
[1729758876418,3.93082,2544.0,2543.4,4.45414537]
[1729758876819,3.93082,2544.0,2543.5,0.55]
[1729758878530,3.93067,2544.1,2543.5,0.55]
[1729758878737,3.93044,2544.3,2543.5,1.45145397]
[1729758878884,3.93016,2544.5,2543.7,4.48125]
[1729758879089,3.93016,2544.5,2543.9,0.55]
[1729758880633,3.93023,2544.4,2543.8,0.55]
[1729758880786,3.93023,2544.4,2543.8,0.998125]
[1729758881191,3.93035,2544.3,2543.8,0.55]
[1729758881511,3.93016,2544.5,2543.8,0.55]
[1729758881687,3.93022,2544.4,2543.8,0.55]
[1729758881891,3.93016,2544.5,2543.8,0.55]
[1729758882092,7.86034,2544.5,2543.8,0.55]
[1729758882293,7.86034,2544.5,2543.8,1.391229]
[1729758882501,7.8603,2544.5,2543.8,1.391229]
[1729758882699,7.86029,2544.5,2543.8,1.391229]
[1729758884035,3.93014,2544.5,2543.8,5.322299]
[1729758885039,3.92948,2544.9,2543.8,5.322299]
[1729758885040,7.85963,2544.7,2544.0,0.55]
[1729758885191,3.92997,2544.6,2544.0,1.14507165]
[1729758888847,3.92997,2544.6,2544.2,0.55]
[1729758889217,3.92997,2544.6,2544.3,0.12429765]
[1729758889418,3.92997,2544.6,2544.1,0.55]
[1729758889608,3.92997,2544.6,2544.3,0.55]
[1729758889804,3.92997,2544.6,2544.4,0.12423497]
[1729758890135,3.92997,2544.6,2544.1,0.55]
[1729758890333,3.92997,2544.6,2544.5,0.1241723]
[1729758890547,3.92997,2544.6,2544.1,0.55]
[1729758890748,3.92997,2544.6,2544.5,0.1241723]
[1729758890947,3.92997,2544.6,2544.1,1.05759517]
[1729758891154,3.92997,2544.6,2544.5,0.1241723]
[1729758891320,3.92997,2544.6,2544.1,1.05759517]
[1729758891521,3.92997,2544.6,2544.5,0.1241723]
[1729758891721,3.92997,2544.6,2544.1,1.05759517]
[1729758891922,3.92997,2544.6,2544.5,0.12406586]
[1729758892444,3.92997,2544.6,2544.1,1.05759517]
[1729758892741,3.92997,2544.6,2544.3,0.55]
[1729758893260,3.92997,2544.6,2544.4,0.12412854]
[1729758894258,3.92976,2544.7,2544.4,0.12412854]
[1729758894429,3.93004,2544.5,2544.4,0.12412854]
[1729758894761,3.93019,2544.4,2544.3,0.55]
[1729758895052,3.93019,2544.4,2544.3,0.12419122]
[1729758895255,3.93019,2544.4,2543.8,0.55]
[1729758895459,3.93041,2544.3,2544.0,0.55]
[1729758895619,3.93063,2544.2,2544.1,0.1243166]
[1729758895815,3.93063,2544.2,2543.6,0.07861601]
[1729758896020,3.93041,2544.3,2543.7,0.17456741]
[1729758896376,3.93053,2544.2,2543.7,0.17456741]
[1729758896919,3.93053,2544.2,2543.8,0.55]
[1729758897352,3.93053,2544.2,2543.9,0.124442]
[1729758898859,3.93067,2544.1,2543.9,0.124442]
[1729758899533,3.93081,2544.0,2543.9,0.124442]
[1729758899720,7.86144,2544.1,2543.9,0.124442]
[1729758899922,3.93081,2544.0,2543.9,0.124442]